Cogmind - Beta 16 @@@ ROGUE MODE // 2025.11.05 @ 23:22:04 Player: opdo Result: Destroyed by S-43 Plague with Heavy Machine Gun Performance ------------- Evolutions (6) 3000 Regions Visited (12) 2400 Robots Destroyed (120) 600 Value Destroyed (4823) 4823 Prototype IDs (21) 420 Alien Tech Used (0) 0 Bonus (3319) 3319 TOTAL SCORE: 14562 Bonus ------- Follower Combat Kills 151 Met Warlord at Base 500 MAIN.C Attacked Warlord 500 Warlord Defense Kills 2248 Friendly Fire -80 Cogmind --------- Core Integrity 0/1150 Matter 51/300 Energy 20/100 System Corruption 35% Temperature Cool (0) Movement Treading (165) Location -3/Proximity Caves Parts ------- > --- POWER (2) -------- (None) > --- PROPULSION (5) --- Improved Treads Treaded Armored Exoskeleton > --- UTILITY (8) ------ Armored Scrap Engine Advanced Targeting Computer Advanced Target Analyzer Graphene Brace Minesniffer Drone Bay (1/10) > --- WEAPON (4) ------- Advanced Plasma Cannon Gauss Rifle KE Penetrator Vortex Lance (fused) > --- INVENTORY (5) ---- Armored Treads Improved Trap Scanner Component Analysis Suite Flak Gun Improved Heavy Machine Gun Peak State ------------ > --- POWER ------------ Hybrid Deuterium Engine Antimatter-Neutrino Reactor > --- PROPULSION ------- Medium Treads Armored Medium Treads Armored Medium Treads Treaded Armored Exoskeleton > --- UTILITY ---------- Armored Scrap Engine Huge Storage Unit Advanced Targeting Computer Improved Core Shielding Centrium Light Armor Plating Makeshift Ablative Armor System Shield > --- WEAPON ----------- Heavy Gatling Laser Improved Heavy Machine Gun KE Penetrator Advanced KE Penetrator > --- INVENTORY -------- Medium Treads Armored Medium Treads Large Storage Unit Structural Scanner Improved Trap Scanner Improved Signal Interpreter Advanced Target Analyzer Precision Matter Filter Improved Medium Armor Plating Improved Medium Armor Plating Improved Medium Armor Plating Graphene Brace Component Analysis Suite Minesniffer Drone Bay Advanced Plasma Cannon Gauss Rifle Flak Gun Improved Heavy Machine Gun Enhanced Coil Gun Precision Grenade Launcher Vortex Lance Vortex Lance Dirty Bomb Trap [Rating: 118] Favorites ----------- Power Hybrid Deuterium Engine Engine Hybrid Deuterium Engine Power Core Enhanced Nuclear Core Reactor Constructs Propulsion Medium Treads Treads Medium Treads Utility Large Storage Unit Device Armored Scrap Engine Storage Large Storage Unit Processor Machine Analyzer Hackware System Shield Protection Improved Core Shielding Weapon Heavy Assault Rifle Energy Gun Heavy Gatling Laser Energy Cannon Advanced Plasma Cannon Ballistic Gun Heavy Assault Rifle Ballistic Cannon Assault Cannon Launcher Thermoblaster Special Weapon Mining Laser Slashing Weapon Chainsword Piercing Weapon Vortex Lance Build | -11 -10 -10 -10 -8 -7 -7 -7 -5 -4 -4 -4 -3 ------- Run | Yrd Mat Min Sub Mat Fac Sto Rec Fac Fac Upp War Pro Slots Evolved 12 | . . . . 4 2 . . 4 2 . . . Power 1 | . . . . . . . . 1 . . . . Propulsion 3 | . . . . 2 . . . 1 . . . . Utility 6 | . . . . 2 2 . . 1 1 . . . Weapon 2 | . . . . . . . . 1 1 . . . Parts Attached 111 | 6 9 . 7 11 20 13 3 14 6 5 16 1 Power 12 | 1 . . 1 4 . 2 . 3 . 1 . . Engine 6 | 1 . . 1 3 . . . 1 . . . . Core 6 | . . . . 1 . 2 . 2 . 1 . . Reactor . | . . . . . . . . . . . . . Propulsion 27 | 2 . . 3 3 5 5 . 4 . . 5 . Treads 27 | 2 . . 3 3 5 5 . 4 . . 5 . Leg . | . . . . . . . . . . . . . Wheel . | . . . . . . . . . . . . . Hover . | . . . . . . . . . . . . . Flight . | . . . . . . . . . . . . . Utility 39 | 1 5 . . 3 11 . 3 5 2 1 7 1 Device 13 | . 2 . . 1 5 . 1 2 . 1 1 . Storage 4 | 1 1 . . . . . . 2 . . . . Processor 7 | . . . . 2 2 . . . 2 . . 1 Hackware 2 | . . . . . . . 2 . . . . . Protection 13 | . 2 . . . 4 . . 1 . . 6 . Artifact . | . . . . . . . . . . . . . Weapon 33 | 2 4 . 3 1 4 6 . 2 4 3 4 . Energy Gun 2 | . . . . . . . . . . 2 . . Energy Cannon 1 | . . . . . . . . . . . 1 . Ballistic Gun 19 | 2 4 . . 1 2 4 . 2 3 1 . . Ballistic Cannon 2 | . . . . . 1 1 . . . . . . Launcher 3 | . . . 1 . . 1 . . . . 1 . Special Weapon 1 | . . . 1 . . . . . . . . . Impact Weapon . | . . . . . . . . . . . . . Slashing Weapon 2 | . . . 1 . 1 . . . . . . . Piercing Weapon 3 | . . . . . . . . . 1 . 2 . Special Melee Weapon . | . . . . . . . . . . . . . Unidentified Prototypes 17 | . . . . 1 2 4 1 2 3 1 3 . Corrupted Parts 3 | . . . . . . . . . . . 3 . System Corruption 14 | . . . . . . . . . . . 14 . Parts Lost 47 | . . . 1 1 8 3 3 2 . 1 25 3 Power 6 | . . . . . . . . 2 . 1 3 . Propulsion 18 | . . . 1 1 4 3 1 . . . 7 1 Utility 14 | . . . . . 3 . 2 . . . 7 2 Weapon 9 | . . . . . 1 . . . . . 8 . Highest Loss Streak 25 | . . . 1 1 3 2 2 1 . 1 25 3 To Critical Strikes . | . . . . . . . . . . . . . Average Backups 16 | 1 11 15 15 14 13 14 14 20 24 23 21 10 Power 1 | . 1 1 1 1 2 1 1 1 1 . . . Propulsion 2 | 1 3 4 3 2 2 3 2 1 2 2 1 1 Utility 7 | . 4 5 5 4 4 5 6 11 12 11 10 7 Weapon 5 | . 2 4 5 6 4 4 5 5 8 9 8 2 Tool/Special . | . . . . . . . . . . . . . Unused Backups 51 | . 7 1 4 7 11 8 1 2 4 1 . 5 Power 7 | . . . . 3 4 . . . . . . . Propulsion 15 | . 3 . 4 . 2 3 1 1 . . . 1 Utility 16 | . 2 1 . 2 2 2 . 1 2 1 . 3 Weapon 13 | . 2 . . 2 3 3 . . 2 . . 1 Tool/Special . | . . . . . . . . . . . . . Average Slot Usage (%) 93 | . 98 100 100 99 99 98 89 91 88 88 84 72 Engine 6 | . 14 14 14 7 7 4 . 2 5 5 4 . Core 2 | . . . . 1 . 2 7 8 5 4 4 . Treads 26 | . 28 28 28 35 29 29 25 23 20 21 19 15 Device 12 | . 11 4 9 17 22 15 10 11 10 10 6 15 Storage 8 | . 14 14 14 9 7 7 7 5 5 5 5 5 Processor 6 | . . . . 8 13 15 10 3 5 5 5 5 Hackware 4 | . . . . . . . 7 11 10 10 8 . Protection 3 | . 1 9 4 . 1 7 . . 5 4 9 9 Energy Gun 1 | . . . . . . . . . . 3 6 . Ballistic Gun 12 | . 28 28 22 8 6 10 4 10 14 11 6 10 Ballistic Cannon 1 | . . . . . . . 2 5 5 . . . Slashing Weapon 2 | . . . 1 9 7 3 5 . . . . . Peak Build Rating 118 | 6 11 11 14 34 57 55 63 95 110 109 118 103 Average Rating 55 | 4 8 10 11 25 45 47 60 81 105 107 103 99 On Entrance 49 | . 6 10 11 14 34 47 54 58 95 106 105 97 Avg Prop Armor Cover (%) 2 | . . . . . . . 2 2 8 . . 4 Naked Turns . | . . . . . . . . . . . . . Heaviest Build 129 | 13 34 34 34 44 64 67 56 119 128 129 129 60 Greatest Support 147 | 40 40 40 40 80 80 112 112 139 147 119 119 90 Greatest Overweight (x) 4 | . . . . . 1 1 . 1 1 1 4 1 Average Overweight (x) . | . . . . . . . . . . . . . Largest Inventory Capacity 25 | 8 15 15 15 15 15 15 15 25 25 25 25 15 Average Capacity 17 | 6 13 15 15 15 15 15 15 22 25 25 24 15 Most Carried 25 | 3 15 15 15 15 15 15 15 25 25 25 25 11 Average Carried 16 | 1 11 14 14 14 13 14 14 20 24 24 22 10 Final Capacity 25 | 8 15 15 15 15 15 15 15 25 25 25 15 5 Final Carried 25 | 3 15 15 15 15 15 15 15 25 25 23 11 5 Scrap Engine Consumption 74 | . . . . . . . 37 16 9 2 10 . Constructs Created 8 | . . . . . . . 3 3 . . 2 . Constructs Modified 15 | . . . . . . . 5 3 4 1 1 1 Class Distribution -------------------- 25% | Mutant 16% | Hacker-Gunner 16% | Assassin 12% | Scavenger-Mutant 7% | Hacker-Skirmisher 5% | Commander-Mutant 4% | Scavenger-Assassin Dominant Class ---------------- Mutant | -10/Materials Mutant | -10/Mines Mutant | -10/Subcaves Assassin | -8/Materials Scavenger-Mutant | -7/Factory Assassin | -7/Storage Assassin | -7/Recycling Hacker-Skirmisher | -5/Factory Hacker-Gunner | -4/Factory Hacker-Gunner | -4/Upper Caves Hacker-Gunner | -4/Warlord Scavenger-Tank | -3/Proximity Caves Resources | -11 -10 -10 -10 -8 -7 -7 -7 -5 -4 -4 -4 -3 ----------- Run | Yrd Mat Min Sub Mat Fac Sto Rec Fac Fac Upp War Pro Matter Collected 3035 | 221 419 68 302 178 252 214 353 349 217 240 174 48 Remotely . | . . . . . . . . . . . . . Salvage Created 4568 | . 538 36 161 592 775 465 287 407 252 345 710 . Parts 232 | . 40 4 10 24 60 24 7 24 13 12 14 . Haulers Intercepted 6 | . 2 . . 3 . 1 . . . . . . Recyclers Shooed 2 | . . 1 . . . . . . 1 . . . Parts Field Recycled . | . . . . . . . . . . . . . Retrieved Matter . | . . . . . . . . . . . . . Parts Self-Destructed 19 | . . . 5 . . . . . . 14 . . Prevented . | . . . . . . . . . . . . . Parts Restored . | . . . . . . . . . . . . . Kills | -11 -10 -10 -10 -8 -7 -7 -7 -5 -4 -4 -4 -3 ------- Run | Yrd Mat Min Sub Mat Fac Sto Rec Fac Fac Upp War Pro Combat Hostiles Destroyed 98 | . 11 2 5 8 16 10 6 11 6 8 15 . Melee 34 | . . . . 8 16 2 6 . . . 2 . Guns 50 | . 11 2 2 . . 6 . 7 5 6 11 . Cannons 4 | . . . . . . . . 2 1 1 . . AOE 9 | . . . 3 . . 2 . 2 . . 2 . Classes Destroyed 18 | . 5 . 2 2 4 . 1 . 1 . 3 . Worker 6 | . . . . 1 4 1 . . . . . . Builder 2 | . 1 . . . . . . 1 . . . . Tunneler 1 | . . . . . 1 . . . . . . . Hauler 6 | . 2 . . 3 . 1 . . . . . . Recycler 2 | . . . . . 1 1 . . . . . . Operator 1 | . . . . . . . . . 1 . . . Watcher 4 | . 3 . . . 1 . . . . . . . Swarmer 29 | . 3 2 . . 9 3 . 4 3 4 1 . Grunt 30 | . 8 . . 6 . 3 2 1 . . 10 . Brawler 1 | . . . . . . . 1 . . . . . Sentry 15 | . . . . 2 3 3 1 2 3 1 . . Specialist 1 | . . . . . . . . . . . 1 . Hunter 3 | . . . . . 1 . . . . 2 . . Programmer 9 | . . . . . 3 1 . 4 . 1 . . Striker 2 | . . . . . . . . . . . 2 . Executioner 1 | . . . . . . . . . . . 1 . Subdweller 7 | . . . 5 . . . 2 . . . . . Scientist 1 | . . . 1 . . . . . . . . . Best Kill Streak 5 | . 5 2 2 4 3 5 1 4 5 4 5 . Combat Bots Only 5 | . 5 2 2 4 3 4 1 4 5 4 5 . Max Kills in Single Turn 3 | . 1 1 1 1 1 3 1 2 1 1 2 . Gunslinging . | . . . . . . . . . . . . . Exploded 2 | . . . 1 . . 1 . 2 . . 2 . Melee 1 | . . . . 1 1 1 1 . . . 1 . Uniques/NPCs Destroyed . | . . . . . . . . . . . . . Combat | -11 -10 -10 -10 -8 -7 -7 -7 -5 -4 -4 -4 -3 -------- Run | Yrd Mat Min Sub Mat Fac Sto Rec Fac Fac Upp War Pro Hostile Shots Fired 1219 | . 47 17 23 28 339 162 111 82 31 49 272 58 Missed 358 | . 9 8 8 7 106 55 30 30 2 14 74 15 Hits 861 | . 38 9 15 21 233 107 81 52 29 35 198 43 Melee 26 | . . . . . . . 4 . . . 22 . Projectile 835 | . 38 9 15 21 233 107 77 52 29 35 176 43 AOE 6 | . . . . . . . . . . . 6 . Critical Strikes 20 | . . . . 2 1 1 1 4 . 1 8 2 Actively Blocked 10 | . . . . . 1 1 . . . . 6 2 Part Disruptions 1 | . . . . . . . . . . . 1 . Damage Taken 14627 | . 407 71 351 314 2576 878 891 1008 589 784 5782 976 Core 1997 | . 103 . 53 29 415 98 83 60 55 251 779 71 Absorbed by Shields . | . . . . . . . . . . . . . Redirected to Shielding 109 | . . . . . . . . 5 22 31 51 . Ignored by Resistances 205 | . . . . . . 205 . . . . . . Regen/Repaired (Parts) 774 | . . . . . . . 173 45 132 12 230 182 Core Remaining (%) 67 | 100 . . 37 94 . . 14 94 . . . . Volleys Fired 188 | . 55 7 15 5 3 25 . 23 13 13 28 1 Largest 4 | . 2 2 2 1 1 2 . 3 4 4 4 3 Hottest 441 | . 46 46 123 23 28 64 . 104 111 269 441 159 Shots Fired 475 | . 110 14 29 5 3 48 1 69 52 52 89 3 Gun 399 | . 110 14 20 5 3 45 1 45 39 39 76 2 Cannon 53 | . . . . . . . . 23 13 13 3 1 Launcher 20 | . . . 6 . . 3 . 1 . . 10 . Special 3 | . . . 3 . . . . . . . . . Kinetic 406 | . 110 14 20 5 3 45 1 68 52 31 55 2 Thermal 57 | . . . 3 . . . . . . 21 32 1 Explosive 12 | . . . 6 . . 3 . 1 . . 2 . Electromagnetic . | . . . . . . . . . . . . . Robot Hit Streak 19 | . 10 4 14 . 1 13 1 11 8 19 11 1 Robot Miss Streak 12 | . 4 2 2 5 1 12 . 11 5 3 6 3 Penetration Max 1 | . . . . . . . . . 1 . 1 . Secondary Targets . | . . . . . . . . . . . . . Shots Hit Robots 453 | . 69 7 22 29 66 43 27 54 35 34 66 1 Core Hits 296 | . 31 2 11 11 23 40 7 68 36 19 47 1 Critical Kills 2 | . . . . . . . . . . 2 . . Critical Parts Destroyed 3 | . 2 . . . . . . . . . 1 . Critical Strikes 23 | . 2 . . 1 9 1 3 . . 3 4 . Destroy 7 | . 2 . . . . . . . . 3 2 . Sever 14 | . . . . 1 9 1 3 . . . . . Sunder 2 | . . . . . . . . . . . 2 . Melee Attacks 192 | . . . . 36 95 14 30 . 1 . 16 . Impact . | . . . . . . . . . . . . . Slashing 175 | . . . . 36 95 14 30 . . . . . Piercing 1 | . . . . . . . . . 1 . . . Entropic 16 | . . . . . . . . . . . 16 . Sneak Attacks 15 | . . . . 5 7 1 2 . . . . . Combat Hostiles 1 | . . . . . . . 1 . . . . . Follow-up Attacks 2 | . . . . . . . . . . . 2 . Damage Inflicted 13859 | . 812 149 788 1252 2568 1354 937 1204 829 1011 2932 23 Guns 5756 | . 812 140 242 . 39 612 15 760 656 810 1647 23 Cannons 689 | . . . . . . . . 276 172 201 40 . Explosions 1815 | . . . 546 . . 432 . 168 . . 669 . Melee 5573 | . . . . 1252 2529 294 922 . . . 576 . Ramming 26 | . . 9 . . . 16 . . 1 . . . Kinetic 5296 | . 812 140 242 . 39 612 15 1036 828 554 995 23 Thermal 1478 | . . . . . . . . . . 457 1021 . Explosive 1486 | . . . 546 . . 432 . 168 . . 340 . Electromagnetic . | . . . . . . . . . . . . . Impact . | . . . . . . . . . . . . . Slashing 4997 | . . . . 1252 2529 294 922 . . . . . Piercing . | . . . . . . . . . . . . . Entropic 576 | . . . . . . . . . . . 576 . Highest Corruption 35 | . 2 2 2 . 5 7 11 2 . . 35 35 Average Corruption 5 | . 2 2 2 . 2 5 9 1 . . 18 35 Corruption Purged . | . . . . . . . . . . . . . Corruption Blocked . | . . . . . . . . . . . . . Effects 174 | . 22 9 11 . 29 14 50 5 . . 20 14 Message Errors 43 | . 7 3 5 . 8 2 10 . . . 5 3 Matter Fused 46 | . 5 2 4 . 7 3 18 1 . . 2 4 Heat Flow Errors 19 | . 3 1 . . 5 4 3 1 . . 1 1 Energy Discharges 18 | . 3 1 . . 5 1 5 . . . 2 1 Parts Fused 2 | . . . . . . 1 . . . . 1 . Data Loss (minor) 13 | . . . . . 1 . 6 1 . . 3 2 Data Loss (major) 14 | . 2 1 1 . 2 . 6 2 . . . . Misfires 4 | . . . 1 . . 2 1 . . . . . Alerts 5 | . 2 1 . . 1 . 1 . . . . . Misdirections 5 | . . . . . . . . . . . 2 3 Weapon Failures 5 | . . . . . . 1 . . . . 4 . Overload Shots . | . . . . . . . . . . . . . Overflow Damage 411 | . . . . 69 201 . 31 13 . . 97 . Projectiles 2 | . . . . . . . . 2 . . . . Explosions 11 | . . . . . . . . 11 . . . . Melee 398 | . . . . 69 201 . 31 . . . 97 . Knockbacks 10 | . . 1 . . . . . 8 1 . . . Impact 1 | . . 1 . . . . . . . . . . Kinetic 9 | . . . . . . . . 8 1 . . . Secondary . | . . . . . . . . . . . . . Self-Inflicted Damage 125 | . . . 30 . . . . . . . 95 . Shots 4 | . . . 2 . . . . . . . 2 . Rammed 3 | . . 1 . . . 1 . . 1 . . . Targets Rammed 3 | . . 1 . . . 1 . . 1 . . . Kicked . | . . . . . . . . . . . . . Crushed . | . . . . . . . . . . . . . Highest Temperature 613 | . 273 258 . 4 279 422 247 179 57 598 613 253 Average Temperature 112 | . 66 136 . 3 112 91 102 29 21 180 172 107 Received Heat Transfer 1718 | . 207 . 57 189 351 183 216 212 36 . 150 117 Effects 21 | . . . . . 5 1 . . . 5 10 . Shutdowns 4 | . . . . . . . . . . 1 3 . Energy Bleed 3 | . . . . . . 1 . . . 1 1 . Interference 9 | . . . . . 5 . . . . . 4 . Matter Decay 2 | . . . . . . . . . . 1 1 . Short Circuit 1 | . . . . . . . . . . 1 . . Damage (core) 2 | . . . . . . . . . . 1 1 . Siege Activations . | . . . . . . . . . . . . . Martial Activations . | . . . . . . . . . . . . . Shielding Activations . | . . . . . . . . . . . . . Robots Disrupted . | . . . . . . . . . . . . . Combat Hostiles . | . . . . . . . . . . . . . Robots Corrupted . | . . . . . . . . . . . . . Combat Hostiles . | . . . . . . . . . . . . . Parts Fried . | . . . . . . . . . . . . . Impact Corruptions . | . . . . . . . . . . . . . Robots Melted 1 | . . . . . . . . . . 1 . . Combat Hostiles 1 | . . . . . . . . . . 1 . . Parts Melted 6 | . . . 1 . . . . . . 3 2 . Heat Transferred 2885 | . . . . . . . . . . 1175 1710 . Parts Sabotaged . | . . . . . . . . . . . . . Parts Stolen . | . . . . . . . . . . . . . Parts Stripped . | . . . . . . . . . . . . . Power Chain Reactions . | . . . . . . . . . . . . . Alert | -11 -10 -10 -10 -8 -7 -7 -7 -5 -4 -4 -4 -3 ------- Run | Yrd Mat Min Sub Mat Fac Sto Rec Fac Fac Upp War Pro Maximum Alert Level 1 | . . . . . . . . 1 . . . . Low Security (%) 98 | 100 100 100 . 100 100 100 100 88 100 . . . Level 1 1 | . . . . . . . . 11 . . . . Level 2 . | . . . . . . . . . . . . . Level 3 . | . . . . . . . . . . . . . Level 4 . | . . . . . . . . . . . . . Level 5 . | . . . . . . . . . . . . . High Security . | . . . . . . . . . . . . . Max Security . | . . . . . . . . . . . . . Peak Influence 250 | . 120 50 . 132 135 196 98 250 114 . . . Initial 250 | . . . . . . 59 55 250 55 . . . Average 47 | . 34 3 . 40 43 106 15 124 46 . . . Influence Increases 3560 | . 368 50 . 265 705 327 266 703 171 180 360 165 Destroy 0b10 Robot/C 1900 | . 220 40 . 160 320 200 100 280 120 160 300 . Destroy 0b10 Robot/NC 115 | . 30 . . 20 40 15 . 5 5 . . . Destroy Leader 380 | . 60 10 . 46 92 62 . 50 40 20 . . Allied During Kill 13 | . . . . . . . 4 9 . . . . Successful Hack 194 | . 41 . . 23 81 4 11 34 . . . . Select Force Hacks 150 | . . . . . . . 150 . . . . . Disable Machine 60 | . 15 . . . 15 15 . 15 . . . . Destroy Structure 108 | . 2 . . 1 7 31 1 60 6 . . . Advance Influence 250 | . . . . . . . . 250 . . . . Lose Combat Pursuer 390 | . . . . 15 150 . . . . . 60 165 Influence Decreases 3505 | . 368 50 . 265 575 314 409 590 258 206 352 118 Entered New Map 235 | . . . . . . 71 88 . 58 10 . 8 Time Decay 2709 | . 368 50 . 255 475 222 291 490 200 186 92 80 Lost Part 451 | . . . . 10 80 21 30 20 . 10 250 30 Lost Ally 110 | . . . . . 20 . . 80 . . 10 . Squads Dispatched 30 | . 2 . . 2 11 4 . 6 5 . . . Investigation 1 | . 1 . . . . . . . . . . . Extermination 9 | . . . . . 5 1 . 2 1 . . . Reinforcement 10 | . 1 . . 2 3 3 . 1 . . . . Assault . | . . . . . . . . . . . . . Garrison 10 | . . . . . 3 . . 3 4 . . . Intercept . | . . . . . . . . . . . . . Searches Triggered . | . . . . . . . . . . . . . Construction Impeded 1 | . . . . . . 1 . . . . . . Haulers Reinforced 1 | . . . . . . 1 . . . . . . Active Scanning Responses . | . . . . . . . . . . . . . Cargo Convoy Interrupts . | . . . . . . . . . . . . . Stealth | -11 -10 -10 -10 -8 -7 -7 -7 -5 -4 -4 -4 -3 --------- Run | Yrd Mat Min Sub Mat Fac Sto Rec Fac Fac Upp War Pro Distress Signals 7 | . 3 . . 1 . 1 2 . . . . . Communications Jammed . | . . . . . . . . . . . . . Distress Signals . | . . . . . . . . . . . . . Times Spotted 222 | . 23 3 5 12 33 13 7 23 10 9 67 17 Peak Tracking Total 22 | . 6 2 2 5 4 4 1 6 3 5 22 12 Tactical Retreats 16 | . . . . 1 9 . . . . . 1 5 Traps | -11 -10 -10 -10 -8 -7 -7 -7 -5 -4 -4 -4 -3 ------- Run | Yrd Mat Min Sub Mat Fac Sto Rec Fac Fac Upp War Pro Traps Triggered 4 | . 2 . . . . . . . 2 . . . Indirectly . | . . . . . . . . . . . . . Trap Hack Attempts . | . . . . . . . . . . . . . Triggered . | . . . . . . . . . . . . . Disarmed . | . . . . . . . . . . . . . Reprogrammed . | . . . . . . . . . . . . . Reused . | . . . . . . . . . . . . . Traps Extracted . | . . . . . . . . . . . . . Installed . | . . . . . . . . . . . . . Triggered . | . . . . . . . . . . . . . Most Traps Carried 1 | . . . . . . . . . . 1 1 1 Objects Rigged 2 | . . . . . 2 . . . . . . . Machines | -11 -10 -10 -10 -8 -7 -7 -7 -5 -4 -4 -4 -3 ---------- Run | Yrd Mat Min Sub Mat Fac Sto Rec Fac Fac Upp War Pro Machines Disabled 6 | . 1 . . . 1 1 . 1 . . 2 . Max in Single Turn 1 | . 1 . . . 1 1 . . . . 1 . Machines Repaired . | . . . . . . . . . . . . . Machines Dismantled . | . . . . . . . . . . . . . Machines Sabotaged . | . . . . . . . . . . . . . Overloaded Fab Kills . | . . . . . . . . . . . . . Hacking | -11 -10 -10 -10 -8 -7 -7 -7 -5 -4 -4 -4 -3 --------- Run | Yrd Mat Min Sub Mat Fac Sto Rec Fac Fac Upp War Pro Machines Accessed 48 | . 6 . 1 6 14 4 9 6 1 . 1 . Terminals 32 | . 6 . . 5 9 4 3 4 1 . . . Fabricators 3 | . . . . . 2 . . 1 . . . . Repair Stations . | . . . . . . . . . . . . . Recycling Units 6 | . . . . 1 . . 5 . . . . . Scanalyzers 3 | . . . . . 2 . . 1 . . . . Garrison Access 1 | . . . . . 1 . . . . . . . Total Hacks 139 | . 22 . 5 17 35 5 33 19 2 . 1 . Successful 88 | . 13 . 5 10 19 2 28 9 1 . 1 . Failed 50 | . 9 . . 7 16 3 5 9 1 . . . Catastrophic 6 | . 2 . . 1 1 1 . 1 . . . . Database Lockouts 1 | . . . . . . . . 1 . . . . Manual 82 | . 16 . . 15 21 2 17 9 2 . . . Terminals 90 | . 22 . . 15 24 5 11 11 2 . . . Fabricators 5 | . . . . . 2 . . 3 . . . . Repair Stations . | . . . . . . . . . . . . . Recycling Units 16 | . . . . 2 . . 14 . . . . . Scanalyzers 12 | . . . . . 7 . . 5 . . . . Garrison Access 2 | . . . . . 2 . . . . . . . Terminal Hacks 30 | . 5 . 5 1 5 2 10 1 . . 1 . Record 12 | . . . 5 . . . 6 1 . . . . Part Schematic 1 | . . . . . 1 . . . . . . . Robot Analysis 3 | . 3 . . . . . . . . . . . Open Door 3 | . . . . . . 2 . . . . 1 . Branch Access Points 1 | . . . . . 1 . . . . . . . Emergency Access Points 1 | . 1 . . . . . . . . . . . Terminal Index 3 | . 1 . . 1 1 . . . . . . . Alert Level 4 | . . . . . 2 . 2 . . . . . Release Object 2 | . . . . . . . 2 . . . . . Fabricator Hacks 2 | . . . . . 1 . . 1 . . . . Build 2 | . . . . . 1 . . 1 . . . . Repair Station Hacks . | . . . . . . . . . . . . . Recycling Unit Hacks 8 | . . . . 2 . . 6 . . . . . Report Inventory 6 | . . . . 1 . . 5 . . . . . Retrieve Components 2 | . . . . 1 . . 1 . . . . . Scanalyzer 8 | . . . . . 4 . . 4 . . . . Insert Component 2 | . . . . . . . . 2 . . . . Analyze 1 | . . . . . . . . 1 . . . . Retrieve Study 5 | . . . . . 4 . . 1 . . . . Garrison Access Hacks . | . . . . . . . . . . . . . Unauthorized Hacks 40 | . 8 . . 7 9 . 12 3 1 . . . Terminals 32 | . 8 . . 7 8 . 5 3 1 . . . Track 2 | . 1 . . . . . 1 . . . . . Assimilate 1 | . . . . . 1 . . . . . . . Botnet 4 | . 1 . . 1 1 . 1 . . . . . Detonate 1 | . . . . . 1 . . . . . . . Operators 2 | . 1 . . 1 . . . . . . . . Skim 22 | . 5 . . 5 5 . 3 3 1 . . . Fabricators 1 | . . . . . 1 . . . . . . . Liberate 1 | . . . . . 1 . . . . . . . Repair Stations . | . . . . . . . . . . . . . Recycling Units 7 | . . . . . . . 7 . . . . . Reject 2 | . . . . . . . 2 . . . . . Tunnel 5 | . . . . . . . 5 . . . . . Scanalyzers . | . . . . . . . . . . . . . Garrison Access . | . . . . . . . . . . . . . Data Cores Recovered 2 | . . . . . 1 . . . 1 . . . Used . | . . . . . . . . . . . . . Hacking Detections 35 | . 6 . . 5 12 3 4 4 1 . . . Full Trace Events 1 | . 1 . . . . . . . . . . . Feedback Events . | . . . . . . . . . . . . . Feedback Blocked . | . . . . . . . . . . . . . Robot Schematics Acquired . | . . . . . . . . . . . . . Robots Built 1 | . . . . . . . . 1 . . . . Authchips . | . . . . . . . . . . . . . Time 76 | . . . . . . . . 76 . . . . Total Robot Build Rating 5 | . . . . . . . . 5 . . . . Part Schematics Acquired 2 | . . . . . 1 . . 1 . . . . Parts Built 2 | . . . . . 2 . . . . . . . Authchips . | . . . . . . . . . . . . . Time 42 | . . . . . 42 . . . . . . . Total Part Build Rating 8 | . . . . . 8 . . . . . . . Part Studies Acquired 5 | . . . . . 4 . . 1 . . . . Parts Repaired . | . . . . . . . . . . . . . Time . | . . . . . . . . . . . . . Parts Recycled . | . . . . . . . . . . . . . Recycled Matter . | . . . . . . . . . . . . . Retrieved Matter . | . . . . . . . . . . . . . Retrieved Components 19 | . . . . 9 . . 10 . . . . . Parts Scanalyzed 1 | . . . . . . . . 1 . . . . Part Schematics Acquired 1 | . . . . . . . . 1 . . . . Parts Damaged . | . . . . . . . . . . . . . Bothacking | -11 -10 -10 -10 -8 -7 -7 -7 -5 -4 -4 -4 -3 ------------ Run | Yrd Mat Min Sub Mat Fac Sto Rec Fac Fac Upp War Pro Used RIF Installer . | . . . . . . . . . . . . . Robots Hacked . | . . . . . . . . . . . . . Non-combat . | . . . . . . . . . . . . . Combat . | . . . . . . . . . . . . . Robot Hacks Applied . | . . . . . . . . . . . . . Relay Couplers Released . | . . . . . . . . . . . . . Fabnet Peak Effective % . | . . . . . . . . . . . . . Robots Rewired 5 | . . . . . . . 5 . . . . . Allies Hacked 1 | . . . . . . . . 1 . . . . Hacks Repelled . | . . . . . . . . . . . . . Allies | -11 -10 -10 -10 -8 -7 -7 -7 -5 -4 -4 -4 -3 -------- Run | Yrd Mat Min Sub Mat Fac Sto Rec Fac Fac Upp War Pro Total Allies 9 | . . . . . 3 . 5 1 . . . . Largest Group 5 | . . . . . 2 . 5 5 . . . . Highest-Rated Group 86 | . . . . . 42 . 86 86 . . . . Highest-Rated Ally 34 | . . . . . 21 . 34 34 . . . . Total Orders 5 | . . . . . . . . . . . 2 3 STAY 2 | . . . . . . . . . . . . 2 EXPLORE 3 | . . . . . . . . . . . 2 1 Ally Attacks 32 | . . . . . 4 . 12 16 . . . . Total Damage 751 | . . . . . 71 . 161 519 . . . . Kills 5 | . . . . . 1 . 1 3 . . . . Allies Corrupted . | . . . . . . . . . . . . . Allies Melted 1 | . . . . . . . . . . . 1 . Intel | -11 -10 -10 -10 -8 -7 -7 -7 -5 -4 -4 -4 -3 ------- Run | Yrd Mat Min Sub Mat Fac Sto Rec Fac Fac Upp War Pro Active Infowar (turns) 7996 | . 769 272 454 743 2454 461 1566 1277 . . . . Sensors 316 | . . . . . 316 . . . . . . . A.S.S. 1 | . . . . . 1 . . . . . . . Terrain 2825 | . . . . 730 878 461 756 . . . . . Structural 5388 | . 769 272 454 743 2021 . . 1129 . . . . Machine Analysis 4744 | . . . . . 1741 461 1566 976 . . . . Jamming 1654 | . . . . . 1654 . . . . . . . Robot Analysis Total 3 | . 3 . . . . . . . . . . . Derelict Logs Recovered 3 | . . 1 . . . . . . . 2 . . Drone Launches 39 | . . . . . . . . . . . 5 34 Drone Recoveries 30 | . . . . . . . . . . . 3 27 Exploration | -11 -10 -10 -10 -8 -7 -7 -7 -5 -4 -4 -4 -3 ------------- Run | Yrd Mat Min Sub Mat Fac Sto Rec Fac Fac Upp War Pro Turns Passed 12467 | 69 1278 893 708 743 2454 461 1566 1288 492 855 1471 189 Spaces Moved 6190 | 38 519 543 383 363 1254 185 866 654 245 398 632 110 Core 2 | 2 . . . . . . . . . . . . Treads 6188 | 36 519 543 383 363 1254 185 866 654 245 398 632 110 Legs . | . . . . . . . . . . . . . Wheels . | . . . . . . . . . . . . . Hover . | . . . . . . . . . . . . . Flight . | . . . . . . . . . . . . . Fastest Speed 50 | 50 160 160 160 160 165 160 160 160 158 158 158 165 Average Speed 170 | 154 160 160 160 163 168 165 160 168 174 199 203 165 Slowest Speed 485 | 160 160 160 160 165 250 232 170 229 218 218 485 245 Overloaded Moves . | . . . . . . . . . . . . . Propulsion Burnouts . | . . . . . . . . . . . . . Robots Hopped . | . . . . . . . . . . . . . Potential Cave-ins . | . . . . . . . . . . . . . Cave-ins Triggered . | . . . . . . . . . . . . . Exploration Rate (%) 47 | 4 80 94 33 39 40 31 94 19 8 57 87 37 Regions Visited 12 Branch Regions 7 Pre-discovered Areas 11 | . 1 1 . 1 2 . 5 . . 1 . . Known Exits Taken 5 | . . 1 . 1 1 1 . . 1 . . . Unknown Exits Taken 7 | 1 1 . 1 . . . 1 1 . 1 1 . Scrap Searched 11 | . . 1 7 . . . . . . 2 . 1 Spaces Dug 13 | . . . . 1 7 3 1 . 1 . . . Terrain Destroyed 124 | . . . 32 1 7 42 1 10 4 15 11 1 Melee 13 | . . . . 1 7 3 1 . 1 . . . Projectile 24 | . . . . . . . . . 3 15 5 1 AOE 87 | . . . 32 . . 39 . 10 . . 6 . Terrain Rammed . | . . . . . . . . . . . . . Walls Destroyed . | . . . . . . . . . . . . . Machines Disabled . | . . . . . . . . . . . . . Actions | -11 -10 -10 -10 -8 -7 -7 -7 -5 -4 -4 -4 -3 --------- Run | Yrd Mat Min Sub Mat Fac Sto Rec Fac Fac Upp War Pro Total 7493 | 46 873 553 443 484 1472 283 1003 785 282 424 731 114 Wait 502 | . 257 . 13 33 48 21 44 65 . 2 19 . Move 6178 | 37 518 542 382 362 1253 184 865 653 244 397 631 110 Hop . | . . . . . . . . . . . . . Pick Up 117 | 3 20 1 7 15 28 10 3 15 9 2 4 . Fast Attach 24 | 6 1 . . 1 2 3 3 3 . . 5 . Attach 44 | . . . 1 4 12 . . 6 2 3 15 1 Detach 2 | . . . . . . . . 2 . . . . Swap 88 | . 9 1 16 9 11 12 . 11 5 4 9 1 Drop 107 | . 13 1 9 19 20 13 8 7 7 3 6 1 Fire 188 | . 55 7 15 5 3 25 . 23 13 13 28 1 Melee 190 | . . . . 36 95 14 30 . 1 . 14 . Ram . | . . . . . . . . . . . . . Kick . | . . . . . . . . . . . . . Crush 3 | . . 1 . . . 1 . . 1 . . . Escape Stasis . | . . . . . . . . . . . . . Rewire 50 | . . . . . . . 50 . . . . . Trap . | . . . . . . . . . . . . . Miscellaneous . | . . . . . . . . . . . . . Route ------- -11/Scrapyard -10/Materials (discovered 5 exits: *Mat x3 / [*Min] / Sub) -10/Mines (discovered 3 exits: *Mat x2 / *Sub) -10/Subcaves (discovered 3 exits: *Mat / Rec / [*Scr]) -8/Materials (discovered 3 exits: *Fac x3) -7/Factory (discovered 4 exits: [*Fac] / *Sto / *Low x2) -7/Storage -7/Recycling -5/Factory -4/Factory -4/Upper Caves -4/Warlord -3/Proximity Caves (discovered 1 exit: Res) History --------- Turn | Location | Event 6 | -11/Scrapyard | Discovered new exit (range 15) 70 | -11/Scrapyard | Entered Materials 160 | -10/Materials | Discovered new exit (range 9) 303 | -10/Materials | Build established: Mutant 777 | -10/Materials | Discovered new exit (range 6) 813 | -10/Materials | Discovered new exit (range 6) 994 | -10/Materials | Identified exit to Materials 1060 | -10/Materials | Learned Storage emergency access door positions 1168 | -10/Materials | Learned 4 Recycling zone layouts 1208 | -10/Materials | Learned location of Mines (-8) 1259 | -10/Materials | Identified exit to Subcaves 1348 | -10/Materials | Entered Mines 1475 | -10/Mines | Discovered exit to Subcaves (range 8) 1614 | -10/Mines | Received a Rocket Launcher from a helpful Derelict 2036 | -10/Mines | Learned location of Storage (-7) 2241 | -10/Mines | Entered Subcaves 2242 | -10/Subcaves | Approached by a straggling Scientist 2242 | -10/Subcaves | Identified exit to Recycling 2403 | -10/Subcaves | Disturbed a concealed Subdweller 2526 | -10/Subcaves | A swath of the cavern ceiling suddenly collapsed 2612 | -10/Subcaves | Visited Clippyterm 2617 | -10/Subcaves | Learned Factory trap positions 2617 | -10/Subcaves | Learned Factory stockpile data 2688 | -10/Subcaves | Core integrity fell below 50% 2934 | -10/Subcaves | Discovered new exit (range 9) 2949 | -10/Subcaves | Entered Materials 2949 | -8/Materials | Evolved 4 slots: Propulsion x2, Utility x2 3186 | -8/Materials | Discovered new exit (range 13) 3404 | -8/Materials | Met 7R-MNS 3462 | -8/Materials | Discovered new exit (range 16) 3468 | -8/Materials | Build established: Assassin 3484 | -8/Materials | Identified exit to Factory 3527 | -8/Materials | Learned Factory trap positions 3560 | -8/Materials | Learned Factory emergency access door positions 3584 | -8/Materials | Learned location of Zion (-7) 3596 | -8/Materials | Learned Factory terminal intel 3618 | -8/Materials | Learned Factory stockpile data 3623 | -8/Materials | Found Prototype Device 3692 | -8/Materials | Entered Factory 3692 | -7/Factory | Evolved 2 slots: Utility x2 3693 | -7/Factory | Caught up to 7R-MNS 3693 | -7/Factory | Loaded intel: 91 trap records 3693 | -7/Factory | Identified Active Sensor Suite 3696 | -7/Factory | Loaded intel: 26 terminal locations 3975 | -7/Factory | Garrison activated, responded to threat 3984 | -7/Factory | Build established: Scavenger-Assassin 4044 | -7/Factory | Lost 3 parts (2n1u) 4316 | -7/Factory | Build established: Scavenger-Mutant 4345 | -7/Factory | Discovered new exit (range 15) 5206 | -7/Factory | Learned location of 1 exit from Extension 5258 | -7/Factory | Learned location of 1 exit from Proximity Caves 5302 | -7/Factory | Learned 2 Extension zone layouts 5335 | -7/Factory | Learned location of Lower Caves (-6) 5373 | -7/Factory | Loaded intel: 4 scanalyzer locations 5397 | -7/Factory | Loaded intel: 6 fabricator locations 5433 | -7/Factory | Identified exit to Lower Caves 5477 | -7/Factory | Learned location of Cetus (-6) 5687 | -7/Factory | Discovered exit to Lower Caves (range 2) 5720 | -7/Factory | Core integrity fell below 50% 5766 | -7/Factory | Lost 3 parts (2n1u) 5805 | -7/Factory | Identified exit to Storage 5903 | -7/Factory | Fabricated Recalibrator? 6026 | -7/Factory | Build established: Assassin 6146 | -7/Factory | Entered Storage 6597 | -7/Storage | Discovered exit to Recycling (range 8) 6600 | -7/Storage | Used back door to open Recycling access 6607 | -7/Storage | Entered Recycling 6695 | -7/Recycling | Entered Scraplab 6712 | -7/Recycling | Found Prototype Device 6712 | -7/Recycling | Identified Scrap Engine 7364 | -7/Recycling | System corruption reached 10% 7524 | -7/Recycling | Core integrity fell below 20% 7762 | -7/Recycling | Build established: Commander-Mutant 8112 | -7/Recycling | Discovered new exit (range 16) 8173 | -7/Recycling | Entered Factory 8173 | -5/Factory | Accompanied by 5 allies 8173 | -5/Factory | Evolved 4 slots: Power x1, Propulsion x1, Utility x1, Weapon x1 8174 | -5/Factory | Loaded intel: 111 trap records 8482 | -5/Factory | Garrison activated, responded to threat 8561 | -5/Factory | Central database locked down 8753 | -5/Factory | Fabricated A-15 Conveyor? 8775 | -5/Factory | Build established: Hacker-Skirmisher 8846 | -5/Factory | P-70 Sage assimilated allied Transporter 4b 9416 | -5/Factory | Discovered new exit (range 8) 9461 | -5/Factory | Entered another Factory area 9461 | -4/Factory | Evolved 2 slots: Utility x1, Weapon x1 9507 | -4/Factory | Garrison activated, responded to threat 9677 | -4/Factory | Discovered new exit (range 14) 9697 | -4/Factory | Garrison activated, responded to threat 9764 | -4/Factory | Build established: Hacker-Gunner 9953 | -4/Factory | Identified exit to Upper Caves 9953 | -4/Factory | Entered Upper Caves 10290 | -4/Upper Caves | Attracted the attention of an 0b10 checkpoint 10695 | -4/Upper Caves | A Derelict revealed a hidden shortcut to "reach the base" 10749 | -4/Upper Caves | Learned 12 Research zone layouts 10808 | -4/Upper Caves | Entered Warlord 10870 | -4/Warlord | Discovered new exit (range 15) 10964 | -4/Warlord | Build established: Hacker-Tank 11339 | -4/Warlord | Build established: Hacker-Gunner 11423 | -4/Warlord | Warlord's base attacked by MAIN.C 11452 | -4/Warlord | Found Prototype Piercing Weapon 11452 | -4/Warlord | Identified Vortex Lance 11456 | -4/Warlord | Found Vortex Lance 11595 | -4/Warlord | Found Prototype Device 11740 | -4/Warlord | Met Warlord 11773 | -4/Warlord | Warlord forces counterattacked 11870 | -4/Warlord | Spotted Striker 11870 | -4/Warlord | Destroyed Striker 11881 | -4/Warlord | Spotted Striker 11901 | -4/Warlord | Spotted Executioner 11923 | -4/Warlord | Destroyed Executioner 11928 | -4/Warlord | Lost 15 allies 11993 | -4/Warlord | Lost 3 allies 12012 | -4/Warlord | System corruption reached 10% 12045 | -4/Warlord | Spotted Striker 12080 | -4/Warlord | Spotted Striker 12093 | -4/Warlord | Core integrity fell below 50% 12098 | -4/Warlord | Warlord base infiltrated, sounded retreat 12101 | -4/Warlord | Destroyed Striker 12108 | -4/Warlord | Spotted Executioner 12122 | -4/Warlord | System corruption reached 30% 12132 | -4/Warlord | Core integrity fell below 20% 12158 | -4/Warlord | Identified Minesniffer Drone Bay 12162 | -4/Warlord | Lost 25 parts (3p7n7u8w) 12234 | -4/Warlord | Spotted Striker 12236 | -4/Warlord | Spotted Striker 12279 | -4/Warlord | Entered Proximity Caves 12280 | -3/Proximity Caves | Identified exit to Research 12303 | -3/Proximity Caves | Lost 16 allies 12352 | -3/Proximity Caves | Attracted the attention of an 0b10 checkpoint 12468 | -3/Proximity Caves | Destroyed by S-43 Plague with Heavy Machine Gun Last Messages --------------- 12450_ Minesniffer Drone retrieved by Minesniffer Drone Bay (no repairs). 12454_ Minesniffer Drone retrieved by Minesniffer Drone Bay (repair cost: 6). 12455_ Minesniffer Drone released from Minesniffer Drone Bay. 12460_ Arm. Medium Treads destroyed. 12461_ Slug penetrates S-43 Plague. 12464_ System corrupted: Component data lost. 12464_ Searching scrap... 12464_ Found Phase Shifter. 12464_ Found Myomer Leg. 12464_ Found Mak. Salvage Targeting Computer. 12464_ Found Adv. Targeting Computer. 12464_ Found 48 Matter. 12465_ Acquired 48 matter. 12466_ Centrium Light Armor Plating destroyed. 12466_ Minesniffer Drone retrieved by Minesniffer Drone Bay (no repairs). 12468_ Dropped Lrg. Storage Unit. Map ----- +----------------------------------------------------+ | ?????????????????????????????????????????????????? | | ?????????????????????????????????????????????????? | | ?????????????????????????????????????????????????? | | ?????????????????????????????????????????????????? | | ?????????????????????????????????????????????????? | | ?????????????????????????????????????????????????? | | ?????????????????????????????????????????????????? | | ?????????????????????????????????????????????????? | | ?????????????????????????????????????????????????? | | ?????????????????????????????????????????????????? | | ????##???????????????????????????????????????????? | | ???## ??????????????????????????????????????????? | | ???# ######???????????????????????????????????? | | ???? #??????????????????????????????????? | | ??? ?? ??????????????????????????????????? | | ??? ?????# ##????????????????????????????????? | | ??? ????# ###?####?????????????????????????? | | ?## ?????# ### #?????????????????????????? | | ?# ?????## #????##???????????????????? | | ?? ????###### ##???# #?????### ??????????? | | ?? ????# g ##### #??? ?????????? | | ?? #????# Y gg n n ### ????????? | | ??# #????# ### gn nn ????????? | | ### #????# #?#m #####n ????????? | | # ##???# #?# #??##n! ????????? | | # #???# ### #??#=@&! #????????? | | ?# #??## #### ##?# !!! #?????????? | | ?# #### ### #??# ! #?????????? | | ## ## ## ? ## s s#?????????? | | # ## #### ##? ;## s s ?????????? | | ##? ####??###???? ##?? ??????????? | | ###### ##?? #???????????? #????????????????? | | ###????###???? ##????????????? ???????????????? | | #?????????????##?????????????? ??????????????? | | ??????????????????????????????? ?????????????? | | ??????????????????????????????? ## ????????????? | | #???????????????????????????????##?? ????????????? | | #????????????????????????????????????????????????? | | ##???????????????????????????????????????????????? | | #???????????????????????????????????????????????? | | #???????????????????????????????????????????????? | | #???????????????????????????????????????????????? | | ##???????????????????????????????????????????????? | | #????????????????????????????????????????????????? | | ?????????????????????????????????????????????????? | | ?????????????????????????????????????????????????? | | #????????????????????????????????????????????????? | | ??????????????????????????????????????????????? | | ????????????????????????????????????????????? | | ???????????????????????????????????????????? | +----------------------------------------------------+ Best States ------------- Heat Dissipation 43 Energy Generation 26 Energy Capacity 1020 Matter Stores 300 Matter Capacity 300 Sight Range 16 Robot Scan Range 15 Terrain Scan Range 16 Terrain Scan Density 110 Jamming Range 12 Armor Coverage 375 Resistance: KI 30 Resistance: TH 25 Core Shielding 30 Evasion (%) 40 Targeting Accuracy 8 Core Analysis 6 Recoil Reduction 5 Matter Filtering 50 Offensive Hacking 10 Defensive Hacking 10 Item Schematics ----------------- Imp. Gravmag System | -7/Factory | Hacked Imp. Core Shielding | -5/Factory | Scanalyzed Robot Schematics ------------------ None Fabricated ------------ Recalibrator | x2 | -7/Factory | Preloaded A-15 Conveyor | x1 | -5/Factory | Preloaded Repaired ---------- Nothing Studied --------- Chainsword | -7/Factory | Hacked Lgt. Treads | -7/Factory | Hacked Assault Cannon | -7/Factory | Hacked Hvy. Rocket Launcher | -7/Factory | Hacked Med. Treads | -5/Factory | Hacked Alien Tech Used ----------------- None Achievements -------------- Into The Breach Plot Armor Challenges ------------ None Game ------ Seed GrenadeGammaMask Manual? 0 Play Time 01:21:41 Cumulative 123.6 hours Start 2025.11.05 @ 21:59:00 End 2025.11.05 @ 23:22:04 Sessions 1 Manual Loads 0 Difficulty Rogue Special Mode None Game No. 314 Rogue 312 Adventurer 2 Explorer 0 Win Type - Total 1 Types 1/0/0/0/0/0/0/0/0/0 Lore% 79 Gallery% 61 Achievement% 40 Wizard Run 0 Options --------- Layout 2 ASCII 0 Keyboard 0 Movement Numpad Keybinds 0 Fullscreen 2 Font 24/Smallcaps Map View 50x44 Zoom Use 0% Tactical HUD 1 Map Filters NONE Filters NONE Steam 1 RUN: 97c93cc2-c514-412a-8aa9-7b482fe64395